Workbook

Sheet 2024
B1: 2024 Budget | C1: 2024 Actual to Date | D1: 2025 Draft | F1: 2024
A2: INCOME | F2: Account Charge | G2: 150 | H2: ---------------- | I2: 202050
A3: Assessment Requests | B3: 30000 | C3: 33330 | D3: 35000 | F3: Current Assessment | G3: 83 | H3: ---------------- | I3: 1005597.29
A4: Foreclosure Fees | B4: 3000 | C4: 1949.16 | F4: Special Assessment | G4: 24 | H4: ---------------- | I4: 32380
A5: Frost Protection Income | B5: 3500 | C5: 2046.23 | D5: 2000 | G5: =SUM(G2:G4) -> 257 | I5: =SUM(I2:I4) -> 1240027.29
A6: Interest LGIP #5940 | B6: 40000 | C6: 43598.09 | D6: 40000
A7: Interest LGIP #5941 | B7: 75 | C7: 75.99 | D7: 75
A8: Interest Washington Federal Checking | C8: 40.19 | E8: 1347 Accounts | F8: =SUM(G8*1347) -> 202050 | G8: 150 | H8: same
A9: Joint Works & Assessments | B9: 30000 | C9: 20676.14 | D9: 21000
A10: Labor & Materials | C10: 127.2 | E10: 12115.63 Acres | F10: =SUM(85*12115.63) -> 1029828.55 | G10: 85 | H10: $2 Increase
A11: Late Fees/Interest | B11: 20000 | C11: 34973.98 | D11: 38000 | E11: Special Assmnt. | F11: =SUM(G11*1347) -> 32328 | G11: 24
A12: Lien Fees | B12: 7000 | C12: 5841.39 | D12: 50000 | E12: Per Acre Assemt. | G12: =SUM(G8:G11) -> 259
A13: Permits & Fees | B13: 1000 | C13: 750 | D13: 750
A14: Revenue | B14: 1253722.06 | C14: 1239563.49 | D14: =SUM(F8:F11) -> 1264206.55
A15: Deferred Rev. 2024 over 2+yrs only | D15: 77264.39
A16: SDAO Grants | B16: 5000 | D16: 2500
A17: Transfer Processing Fees | B17: 5000 | C17: 10493 | D17: 3000
A18: Transfer On-Fees (Water Right Sales) | B18: 25000 | C18: 40190 | D18: 20000
A19: TOTAL | B19: =SUM(B3:B18) -> 1423297.06 | C19: =SUM(C3:C18) -> 1433654.86 | D19: =SUM(D3:D18) -> 1553795.94
A20: EXPENSE
A21: CANALS & DRAINS
A22: Above the Drop Expenses | B22: 8700 | C22: 20974.07 | D22: 18000
A23: Bear Creek - Automated Gates | B23: 250 | D23: 250
A24: Bor-Hydromet Services | B24: 5000 | C24: 4957.35 | D24: 5000
A25: Bridges & Culverts | B25: 1000 | C25: 113.89 | D25: 500
A26: Canal/Bank Repair / Moss Cntrl | B26: 1000 | C26: 2901.83 | D26: 3000
A27: Canal Lining Repairs & Maint | B27: 3000 | C27: 14790.28 | D27: 14000
A28: Diversions | B28: 750 | C28: 2396.46 | D28: 2000
A29: EC Lateral | C29: 47.98 | D29: 22.3
A30: Elec Motor Fishwheels / Bear Cr | B30: 250 | C30: 0 | D30: 250
A31: Equipment Rentals & Leases | B31: 500 | C31: 1072.12 | D31: 1000
A32: Gas, Diesel & Oil | B32: 40000 | C32: 38939.51 | D32: 39000
A33: Interest John Deere Tractor/Mower | B33: 4010.68 | C33: 4285.6 | D33: 3910
A34: John Deere Principal Payment | B34: 18500 | C34: 16591.74 | D34: 18865
A35: Laterals / Auger Rods | B35: 1000 | C35: 4172.13 | D35: 1000
A36: Pump Electrical Service | C36: 1271.02 | D36: 500
A37: Pump Repair | B37: 500 | C37: 135 | D37: 500
A38: Safety of Dams | B38: 38000 | C38: 32400.59 | D38: 32400
A39: Siphons | C39: 36.11
A40: Spillways | B40: 2000 | C40: 1489.44 | D40: 1500
A41: Stock Gates | B41: 100 | C41: 35.97 | D41: 100
A42: Turns - Checks / Staff Gauges | B42: 8000 | C42: 8183.89 | D42: 8000
A43: ADMINISTRATION
A44: Audit | B44: 15000 | C44: 18150 | D44: 25000
A45: Bank Fees/Checking Acct | B45: 1300 | C45: 878.16
A46: Board Meetings | B46: 1500 | C46: 1074.49 | D46: 1500
A47: Computer Services | B47: 12500 | C47: 33085.1 | D47: 15000
A48: Copier Lease | B48: 3200 | C48: 3549.31 | D48: 4000
A49: Debt - US Contract | B49: 28500 | C49: 39284.9 | D49: 29000
A50: Elections | B50: 1000 | C50: 0 | D50: 500
A51: Employee Recognition | B51: 1500 | C51: 935.62 | D51: 500
A52: Garbage Disposal | B52: 2000 | C52: 2038.08 | D52: 2000
A53: General Liab Ins/Bonds | B53: 65000 | C53: 63699 | D53: 74000
A54: GIS - Annual License Renewal | B54: 4000 | C54: 680 | D54: 1000
A55: Government Ethics Charges | B55: 300 | C55: 2141.36 | D55: 2000
A56: Legal
A57: Adjudication | B57: 40000 | C57: 43386.61 | D57: 40000
A58: Attorney Fees | B58: 3000 | C58: 8453.5 | D58: 5000
A59: Foreclosure | B59: 3000 | C59: 855
A60: Licenses & Permits | B60: 1000 | C60: 500 | D60: 500
A61: Maint Agreements / Copier / SOS | B61: 3000 | C61: 4215.58 | D61: 3500
A62: Meetings - General | B62: 100 | C62: 111.9 | D62: 100
A63: Membership Dues | B63: 10000 | C63: 3849.41 | D63: 12000
A64: Office Equipment Repairs | B64: 100 | C64: 0 | D64: 100
A65: Office Maint Cleaning | B65: 250 | C65: 599.92 | D65: 300
A66: Office Supplies | B66: 4000 | C66: 3151.41 | D66: 2000
A67: O&M Crew & Shop Supplies | B67: 750 | C67: 1661.38 | D67: 1500
A68: PAYROLL EXPENSE | B68: 1021983 | C68: 954483.97 | D68: 1109398.64 | E68: 3% CPI + Merit Raises (See spreadsheet)
A69: Physicals, Drug Screens | B69: 300 | C69: 437 | D69: 300
A70: Postage CURRENT: $0.73 | B70: 1000 | C70: 3383.34 | D70: 2000
A71: Recording Fees | B71: 5000 | C71: 3323.75 | D71: 11600
A72: Software/Dues/Subscription | B72: 3500 | C72: 4804.39 | D72: 4500
A73: State Watermaster | B73: 2000 | C73: 2000 | D73: 2000
A74: Telephone / Cell / Telemetry | B74: 7500 | C74: 8653.65 | D74: 8000
A75: Training
A76: Conferences & Seminars | B76: 750 | C76: 1127.99 | D76: 750
A77: Employee Training / Licenses | C77: 1320 | D77: 1000
A78: Lodging/Meals | B78: 750 | C78: 1752.08 | D78: 1500
A79: Travel | B79: 300 | C79: 844.9 | D79: 750
A80: Transfers Water Right Expense | C80: 2226.25 | D80: 3500
A81: Utilities / Propane / Water Sys | B81: 10000 | C81: 10150.75 | D81: 10000
A82: SHOP | E82: =SUM(D44:D81) -> 1374798.64
A83: Building Improvements | B83: 500 | C83: 35.92 | D83: 200
A84: Repairs - Equipment | B84: 10000 | C84: 10638.6 | D84: 10000
A85: Repairs - Vehicles | B85: 10000 | C85: 5474.3 | D85: 7900
A86: Safety Equipment / Clothing | B86: 750 | C86: 1515.64 | D86: 1000
A87: SDAO Safety Grant Expense | B87: 11500 | C87: 0 | D87: 2500
A88: Small Furnishings / Equip | B88: 250 | C88: 516.11 | D88: 500
A89: Small Tools | B89: 1100 | C89: 1495.91 | D89: 1500
A90: Supplies - Chemicals | B90: 100 | C90: 15.88 | D90: 100
A91: Supplies - Small | B91: 500 | C91: 234.94 | D91: 500
A92: Supplies - Welding | B92: 1500 | C92: 1390.41 | D92: 1500
A93: Yard Maint & Equip | B93: 250 | C93: 6962.33 | D93: 3500 | E93: =SUM(D83:D93) -> 29200
B94: =SUM(B22:B93) -> 1423093.68 | C94: =SUM(C22:C93) -> 1409883.82 | D94: =SUM(D22:D93) -> 1553795.94
B95: =SUM(B19-B94) -> 203.38 | C95: =SUM(C19-C94) -> 23771.04 | D95: =SUM(D19-D94) -> -2.328306437e-10
C97: -10000 | D97: expenses Dec
C99: =SUM(C95:C97) -> 13771.04
A101: Working Funds | D101: 1016000
A102: New Trucks (1) | D102: -32000
A103: Excavator | D103: -125000
A104: Balance | D104: =SUM(D101:D103) -> 859000
